Workbook

Sheet Bell
A1: Z = # of Standard Deviations
A2: Distribution had a bell (Normal) shape | E2: SD | F2: 1 | G2: 2 | H2: 3
A3: Pop. Stats Test Mean | B3: 83 | C3: Mew | E3: Lower | F3: =$B$3-$B$4*F$2 -> 78 | G3: =$B$3-$B$4*G$2 -> 73 | H3: =$B$3-$B$4*H$2 -> 68
A4: Pop. Standard Deviation | B4: 5 | C4: Sigma | E4: Upper | F4: =$B$3+$B$4*F$2 -> 88 | G4: =$B$3+$B$4*G$2 -> 93 | H4: =$B$3+$B$4*H$2 -> 98
B14: Upper | C14: =$B$3-$B$4*C$16 -> 68 | D14: =$B$3-$B$4*D$16 -> 73 | E14: =$B$3-$B$4*E$16 -> 78 | F14: 83
B15: Lower | C15: =$B$3+$B$4*C$16 -> 98 | D15: =$B$3+$B$4*D$16 -> 93 | E15: =$B$3+$B$4*E$16 -> 88 | F15: 83
C16: 3 | D16: 2 | E16: 1 | F16: 0
C17: 0.99 | D17: 0.95 | E17: 0.68
A18: X | B18: All Area Under Curve = 100% | C18: ="within about "&C16&" SD = "&TEXT(C17,"0%")&" of the values in a bell shaped distribution will lie between a score of "&C14&" and "&C15 -> within about 3 SD = 99% of the values in a bell shaped distribution will lie between a score of 68 and 98 | D18: ="within about "&D16&" SD = "&TEXT(D17,"0%")&" of the values in a bell shaped distribution will lie between a score of "&D14&" and "&D15 -> within about 2 SD = 95% of the values in a bell shaped distribution will lie between a score of 73 and 93 | E18: within about 1 SD = 68% of the values in a bell shaped distribution will lie between a score of 78 and 88 | F18: =B3&" is mean and has a z-score of 0" -> 83 is mean and has a z-score of 0
A19: 53 | B19: =_xlfn.NORM.DIST(A19,$B$3,$B$4,0) -> 1.21517657e-09 | C19: =IF(AND($A19>=$B$3-$B$4*C$16,$A19<=$B$3+$B$4*C$16),B19,"") ->  | D19: =IF(AND($A19>=$B$3-$B$4*D$16,$A19<=$B$3+$B$4*D$16),C19,"") ->  | E19: =IF(AND($A19>=$B$3-$B$4*E$16,$A19<=$B$3+$B$4*E$16),D19,"") ->  | F19: =IF(AND(A19>=$B$3-0.15,A19<=$B$3+0.15),B19,"") -> 
A20: 53.05 | B20: =_xlfn.NORM.DIST(A20,$B$3,$B$4,0) -> 1.290254378e-09 | C20: =IF(AND($A20>=$B$3-$B$4*C$16,$A20<=$B$3+$B$4*C$16),B20,"") ->  | E20: =IF(AND($A20>=$B$3-$B$4*E$16,$A20<=$B$3+$B$4*E$16),D20,"") ->  | F20: =IF(AND(A20>=$B$3-0.15,A20<=$B$3+0.15),B20,"") -> 
A21: 53.1 | B21: 1.369833763e-09 | C21: =IF(AND($A21>=$B$3-$B$4*C$16,$A21<=$B$3+$B$4*C$16),B21,"") ->  | E21: =IF(AND($A21>=$B$3-$B$4*E$16,$A21<=$B$3+$B$4*E$16),D21,"") -> 
A22: 53.15 | B22: 1.454175962e-09 | C22: =IF(AND($A22>=$B$3-$B$4*C$16,$A22<=$B$3+$B$4*C$16),B22,"") ->  | E22: =IF(AND($A22>=$B$3-$B$4*E$16,$A22<=$B$3+$B$4*E$16),D22,"") -> 
A23: 53.2 | B23: 1.543556843e-09 | C23: =IF(AND($A23>=$B$3-$B$4*C$16,$A23<=$B$3+$B$4*C$16),B23,"") ->  | E23: =IF(AND($A23>=$B$3-$B$4*E$16,$A23<=$B$3+$B$4*E$16),D23,"") -> 
A24: 53.25 | B24: 1.638267681e-09 | C24: =IF(AND($A24>=$B$3-$B$4*C$16,$A24<=$B$3+$B$4*C$16),B24,"") ->  | E24: =IF(AND($A24>=$B$3-$B$4*E$16,$A24<=$B$3+$B$4*E$16),D24,"") -> 
A25: 53.3 | B25: 1.738615995e-09 | C25: =IF(AND($A25>=$B$3-$B$4*C$16,$A25<=$B$3+$B$4*C$16),B25,"") ->  | E25: =IF(AND($A25>=$B$3-$B$4*E$16,$A25<=$B$3+$B$4*E$16),D25,"") -> 
A26: 53.35 | B26: 1.844926411e-09 | C26: =IF(AND($A26>=$B$3-$B$4*C$16,$A26<=$B$3+$B$4*C$16),B26,"") ->  | E26: =IF(AND($A26>=$B$3-$B$4*E$16,$A26<=$B$3+$B$4*E$16),D26,"") -> 
A27: 53.4 | B27: 1.957541582e-09 | C27: =IF(AND($A27>=$B$3-$B$4*C$16,$A27<=$B$3+$B$4*C$16),B27,"") ->  | E27: =IF(AND($A27>=$B$3-$B$4*E$16,$A27<=$B$3+$B$4*E$16),D27,"") -> 
A28: 53.45 | B28: 2.076823144e-09 | C28: =IF(AND($A28>=$B$3-$B$4*C$16,$A28<=$B$3+$B$4*C$16),B28,"") ->  | E28: =IF(AND($A28>=$B$3-$B$4*E$16,$A28<=$B$3+$B$4*E$16),D28,"") -> 
A29: 53.5 | B29: 2.203152725e-09 | C29: =IF(AND($A29>=$B$3-$B$4*C$16,$A29<=$B$3+$B$4*C$16),B29,"") ->  | E29: =IF(AND($A29>=$B$3-$B$4*E$16,$A29<=$B$3+$B$4*E$16),D29,"") -> 
A30: 53.55 | B30: 2.336933013e-09 | C30: =IF(AND($A30>=$B$3-$B$4*C$16,$A30<=$B$3+$B$4*C$16),B30,"") ->  | E30: =IF(AND($A30>=$B$3-$B$4*E$16,$A30<=$B$3+$B$4*E$16),D30,"") -> 
A31: 53.6 | B31: 2.478588863e-09 | C31: =IF(AND($A31>=$B$3-$B$4*C$16,$A31<=$B$3+$B$4*C$16),B31,"") ->  | E31: =IF(AND($A31>=$B$3-$B$4*E$16,$A31<=$B$3+$B$4*E$16),D31,"") -> 
A32: 53.65 | B32: 2.628568473e-09 | C32: =IF(AND($A32>=$B$3-$B$4*C$16,$A32<=$B$3+$B$4*C$16),B32,"") ->  | E32: =IF(AND($A32>=$B$3-$B$4*E$16,$A32<=$B$3+$B$4*E$16),D32,"") -> 
A33: 53.7 | B33: 2.787344614e-09 | C33: =IF(AND($A33>=$B$3-$B$4*C$16,$A33<=$B$3+$B$4*C$16),B33,"") ->  | E33: =IF(AND($A33>=$B$3-$B$4*E$16,$A33<=$B$3+$B$4*E$16),D33,"") -> 
A34: 53.75 | B34: 2.955415917e-09 | C34: =IF(AND($A34>=$B$3-$B$4*C$16,$A34<=$B$3+$B$4*C$16),B34,"") ->  | E34: =IF(AND($A34>=$B$3-$B$4*E$16,$A34<=$B$3+$B$4*E$16),D34,"") -> 
A35: 53.8 | B35: 3.133308238e-09 | C35: =IF(AND($A35>=$B$3-$B$4*C$16,$A35<=$B$3+$B$4*C$16),B35,"") ->  | E35: =IF(AND($A35>=$B$3-$B$4*E$16,$A35<=$B$3+$B$4*E$16),D35,"") -> 
A36: 53.85 | B36: 3.321576074e-09 | C36: =IF(AND($A36>=$B$3-$B$4*C$16,$A36<=$B$3+$B$4*C$16),B36,"") ->  | E36: =IF(AND($A36>=$B$3-$B$4*E$16,$A36<=$B$3+$B$4*E$16),D36,"") -> 
A37: 53.9 | B37: 3.520804066e-09 | C37: =IF(AND($A37>=$B$3-$B$4*C$16,$A37<=$B$3+$B$4*C$16),B37,"") ->  | E37: =IF(AND($A37>=$B$3-$B$4*E$16,$A37<=$B$3+$B$4*E$16),D37,"") -> 
A38: 53.95 | B38: 3.731608565e-09 | C38: =IF(AND($A38>=$B$3-$B$4*C$16,$A38<=$B$3+$B$4*C$16),B38,"") ->  | E38: =IF(AND($A38>=$B$3-$B$4*E$16,$A38<=$B$3+$B$4*E$16),D38,"") -> 
A39: 54 | B39: 3.954639281e-09 | C39: =IF(AND($A39>=$B$3-$B$4*C$16,$A39<=$B$3+$B$4*C$16),B39,"") ->  | E39: =IF(AND($A39>=$B$3-$B$4*E$16,$A39<=$B$3+$B$4*E$16),D39,"") -> 
A40: 54.05 | B40: 4.190581015e-09 | C40: =IF(AND($A40>=$B$3-$B$4*C$16,$A40<=$B$3+$B$4*C$16),B40,"") ->  | E40: =IF(AND($A40>=$B$3-$B$4*E$16,$A40<=$B$3+$B$4*E$16),D40,"") -> 
A41: 54.1 | B41: 4.440155469e-09 | C41: =IF(AND($A41>=$B$3-$B$4*C$16,$A41<=$B$3+$B$4*C$16),B41,"") ->  | E41: =IF(AND($A41>=$B$3-$B$4*E$16,$A41<=$B$3+$B$4*E$16),D41,"") -> 
A42: 54.15 | B42: 4.704123156e-09 | C42: =IF(AND($A42>=$B$3-$B$4*C$16,$A42<=$B$3+$B$4*C$16),B42,"") ->  | E42: =IF(AND($A42>=$B$3-$B$4*E$16,$A42<=$B$3+$B$4*E$16),D42,"") -> 
A43: 54.2 | B43: 4.983285395e-09 | C43: =IF(AND($A43>=$B$3-$B$4*C$16,$A43<=$B$3+$B$4*C$16),B43,"") ->  | E43: =IF(AND($A43>=$B$3-$B$4*E$16,$A43<=$B$3+$B$4*E$16),D43,"") -> 
A44: 54.25 | B44: 5.278486407e-09 | C44: =IF(AND($A44>=$B$3-$B$4*C$16,$A44<=$B$3+$B$4*C$16),B44,"") ->  | E44: =IF(AND($A44>=$B$3-$B$4*E$16,$A44<=$B$3+$B$4*E$16),D44,"") -> 
A45: 54.3 | B45: 5.590615516e-09 | C45: =IF(AND($A45>=$B$3-$B$4*C$16,$A45<=$B$3+$B$4*C$16),B45,"") ->  | E45: =IF(AND($A45>=$B$3-$B$4*E$16,$A45<=$B$3+$B$4*E$16),D45,"") -> 
A46: 54.35 | B46: 5.92060945e-09 | C46: =IF(AND($A46>=$B$3-$B$4*C$16,$A46<=$B$3+$B$4*C$16),B46,"") ->  | E46: =IF(AND($A46>=$B$3-$B$4*E$16,$A46<=$B$3+$B$4*E$16),D46,"") -> 
A47: 54.4 | B47: 6.269454764e-09 | C47: =IF(AND($A47>=$B$3-$B$4*C$16,$A47<=$B$3+$B$4*C$16),B47,"") ->  | E47: =IF(AND($A47>=$B$3-$B$4*E$16,$A47<=$B$3+$B$4*E$16),D47,"") -> 
A48: 54.45 | B48: 6.638190367e-09 | C48: =IF(AND($A48>=$B$3-$B$4*C$16,$A48<=$B$3+$B$4*C$16),B48,"") ->  | E48: =IF(AND($A48>=$B$3-$B$4*E$16,$A48<=$B$3+$B$4*E$16),D48,"") -> 
A49: 54.5 | B49: 7.02791019e-09 | C49: =IF(AND($A49>=$B$3-$B$4*C$16,$A49<=$B$3+$B$4*C$16),B49,"") ->  | E49: =IF(AND($A49>=$B$3-$B$4*E$16,$A49<=$B$3+$B$4*E$16),D49,"") -> 
A50: 54.55 | B50: 7.43976596e-09 | C50: =IF(AND($A50>=$B$3-$B$4*C$16,$A50<=$B$3+$B$4*C$16),B50,"") ->  | E50: =IF(AND($A50>=$B$3-$B$4*E$16,$A50<=$B$3+$B$4*E$16),D50,"") -> 
A51: 54.6 | B51: 7.874970127e-09 | C51: =IF(AND($A51>=$B$3-$B$4*C$16,$A51<=$B$3+$B$4*C$16),B51,"") ->  | E51: =IF(AND($A51>=$B$3-$B$4*E$16,$A51<=$B$3+$B$4*E$16),D51,"") -> 
A52: 54.65 | B52: 8.334798921e-09 | C52: =IF(AND($A52>=$B$3-$B$4*C$16,$A52<=$B$3+$B$4*C$16),B52,"") ->  | E52: =IF(AND($A52>=$B$3-$B$4*E$16,$A52<=$B$3+$B$4*E$16),D52,"") -> 
A53: 54.7 | B53: 8.820595558e-09 | C53: =IF(AND($A53>=$B$3-$B$4*C$16,$A53<=$B$3+$B$4*C$16),B53,"") ->  | E53: =IF(AND($A53>=$B$3-$B$4*E$16,$A53<=$B$3+$B$4*E$16),D53,"") -> 
A54: 54.75 | B54: 9.333773595e-09 | C54: =IF(AND($A54>=$B$3-$B$4*C$16,$A54<=$B$3+$B$4*C$16),B54,"") ->  | E54: =IF(AND($A54>=$B$3-$B$4*E$16,$A54<=$B$3+$B$4*E$16),D54,"") -> 
A55: 54.8 | B55: 9.875820454e-09 | C55: =IF(AND($A55>=$B$3-$B$4*C$16,$A55<=$B$3+$B$4*C$16),B55,"") ->  | E55: =IF(AND($A55>=$B$3-$B$4*E$16,$A55<=$B$3+$B$4*E$16),D55,"") -> 
A56: 54.85 | B56: 1.04483011e-08 | C56: =IF(AND($A56>=$B$3-$B$4*C$16,$A56<=$B$3+$B$4*C$16),B56,"") ->  | E56: =IF(AND($A56>=$B$3-$B$4*E$16,$A56<=$B$3+$B$4*E$16),D56,"") -> 
A57: 54.9 | B57: 1.105286192e-08 | C57: =IF(AND($A57>=$B$3-$B$4*C$16,$A57<=$B$3+$B$4*C$16),B57,"") ->  | E57: =IF(AND($A57>=$B$3-$B$4*E$16,$A57<=$B$3+$B$4*E$16),D57,"") -> 
A58: 54.95 | B58: 1.169123471e-08 | C58: =IF(AND($A58>=$B$3-$B$4*C$16,$A58<=$B$3+$B$4*C$16),B58,"") ->  | E58: =IF(AND($A58>=$B$3-$B$4*E$16,$A58<=$B$3+$B$4*E$16),D58,"") -> 
A59: 55 | B59: 1.2365241e-08 | C59: =IF(AND($A59>=$B$3-$B$4*C$16,$A59<=$B$3+$B$4*C$16),B59,"") ->  | E59: =IF(AND($A59>=$B$3-$B$4*E$16,$A59<=$B$3+$B$4*E$16),D59,"") -> 
A60: 55.05 | B60: 1.307679638e-08 | C60: =IF(AND($A60>=$B$3-$B$4*C$16,$A60<=$B$3+$B$4*C$16),B60,"") ->  | E60: =IF(AND($A60>=$B$3-$B$4*E$16,$A60<=$B$3+$B$4*E$16),D60,"") -> 
A61: 55.1 | B61: 1.382791522e-08 | C61: =IF(AND($A61>=$B$3-$B$4*C$16,$A61<=$B$3+$B$4*C$16),B61,"") ->  | E61: =IF(AND($A61>=$B$3-$B$4*E$16,$A61<=$B$3+$B$4*E$16),D61,"") -> 
A62: 55.15 | B62: 1.462071548e-08 | C62: =IF(AND($A62>=$B$3-$B$4*C$16,$A62<=$B$3+$B$4*C$16),B62,"") ->  | E62: =IF(AND($A62>=$B$3-$B$4*E$16,$A62<=$B$3+$B$4*E$16),D62,"") -> 
A63: 55.2 | B63: 1.545742378e-08 | C63: =IF(AND($A63>=$B$3-$B$4*C$16,$A63<=$B$3+$B$4*C$16),B63,"") ->  | E63: =IF(AND($A63>=$B$3-$B$4*E$16,$A63<=$B$3+$B$4*E$16),D63,"") -> 
A64: 55.25 | B64: 1.634038076e-08 | C64: =IF(AND($A64>=$B$3-$B$4*C$16,$A64<=$B$3+$B$4*C$16),B64,"") ->  | E64: =IF(AND($A64>=$B$3-$B$4*E$16,$A64<=$B$3+$B$4*E$16),D64,"") -> 
A65: 55.3 | B65: 1.72720466e-08 | C65: =IF(AND($A65>=$B$3-$B$4*C$16,$A65<=$B$3+$B$4*C$16),B65,"") ->  | E65: =IF(AND($A65>=$B$3-$B$4*E$16,$A65<=$B$3+$B$4*E$16),D65,"") -> 
A66: 55.35 | B66: 1.825500687e-08 | C66: =IF(AND($A66>=$B$3-$B$4*C$16,$A66<=$B$3+$B$4*C$16),B66,"") ->  | E66: =IF(AND($A66>=$B$3-$B$4*E$16,$A66<=$B$3+$B$4*E$16),D66,"") -> 
A67: 55.4 | B67: 1.929197857e-08 | C67: =IF(AND($A67>=$B$3-$B$4*C$16,$A67<=$B$3+$B$4*C$16),B67,"") ->  | E67: =IF(AND($A67>=$B$3-$B$4*E$16,$A67<=$B$3+$B$4*E$16),D67,"") -> 
A68: 55.45 | B68: 2.038581654e-08 | C68: =IF(AND($A68>=$B$3-$B$4*C$16,$A68<=$B$3+$B$4*C$16),B68,"") ->  | E68: =IF(AND($A68>=$B$3-$B$4*E$16,$A68<=$B$3+$B$4*E$16),D68,"") -> 
A69: 55.5 | B69: 2.153952009e-08 | C69: =IF(AND($A69>=$B$3-$B$4*C$16,$A69<=$B$3+$B$4*C$16),B69,"") ->  | E69: =IF(AND($A69>=$B$3-$B$4*E$16,$A69<=$B$3+$B$4*E$16),D69,"") -> 
A70: 55.55 | B70: 2.275623995e-08 | C70: =IF(AND($A70>=$B$3-$B$4*C$16,$A70<=$B$3+$B$4*C$16),B70,"") ->  | E70: =IF(AND($A70>=$B$3-$B$4*E$16,$A70<=$B$3+$B$4*E$16),D70,"") -> 
A71: 55.6 | B71: 2.403928558e-08 | C71: =IF(AND($A71>=$B$3-$B$4*C$16,$A71<=$B$3+$B$4*C$16),B71,"") ->  | E71: =IF(AND($A71>=$B$3-$B$4*E$16,$A71<=$B$3+$B$4*E$16),D71,"") -> 
A72: 55.65 | B72: 2.539213274e-08 | C72: =IF(AND($A72>=$B$3-$B$4*C$16,$A72<=$B$3+$B$4*C$16),B72,"") ->  | E72: =IF(AND($A72>=$B$3-$B$4*E$16,$A72<=$B$3+$B$4*E$16),D72,"") -> 
A73: 55.7 | B73: 2.681843144e-08 | C73: =IF(AND($A73>=$B$3-$B$4*C$16,$A73<=$B$3+$B$4*C$16),B73,"") ->  | E73: =IF(AND($A73>=$B$3-$B$4*E$16,$A73<=$B$3+$B$4*E$16),D73,"") -> 
A74: 55.75 | B74: 2.832201426e-08 | C74: =IF(AND($A74>=$B$3-$B$4*C$16,$A74<=$B$3+$B$4*C$16),B74,"") ->  | E74: =IF(AND($A74>=$B$3-$B$4*E$16,$A74<=$B$3+$B$4*E$16),D74,"") -> 
A75: 55.8 | B75: 2.990690503e-08 | C75: =IF(AND($A75>=$B$3-$B$4*C$16,$A75<=$B$3+$B$4*C$16),B75,"") ->  | E75: =IF(AND($A75>=$B$3-$B$4*E$16,$A75<=$B$3+$B$4*E$16),D75,"") -> 
A76: 55.85 | B76: 3.157732789e-08 | C76: =IF(AND($A76>=$B$3-$B$4*C$16,$A76<=$B$3+$B$4*C$16),B76,"") ->  | E76: =IF(AND($A76>=$B$3-$B$4*E$16,$A76<=$B$3+$B$4*E$16),D76,"") -> 
A77: 55.9 | B77: 3.333771675e-08 | C77: =IF(AND($A77>=$B$3-$B$4*C$16,$A77<=$B$3+$B$4*C$16),B77,"") ->  | E77: =IF(AND($A77>=$B$3-$B$4*E$16,$A77<=$B$3+$B$4*E$16),D77,"") -> 
A78: 55.95 | B78: 3.519272522e-08 | C78: =IF(AND($A78>=$B$3-$B$4*C$16,$A78<=$B$3+$B$4*C$16),B78,"") ->  | E78: =IF(AND($A78>=$B$3-$B$4*E$16,$A78<=$B$3+$B$4*E$16),D78,"") -> 
A79: 56 | B79: 3.714723689e-08 | C79: =IF(AND($A79>=$B$3-$B$4*C$16,$A79<=$B$3+$B$4*C$16),B79,"") ->  | E79: =IF(AND($A79>=$B$3-$B$4*E$16,$A79<=$B$3+$B$4*E$16),D79,"") -> 
A80: 56.05 | B80: 3.920637618e-08 | C80: =IF(AND($A80>=$B$3-$B$4*C$16,$A80<=$B$3+$B$4*C$16),B80,"") ->  | E80: =IF(AND($A80>=$B$3-$B$4*E$16,$A80<=$B$3+$B$4*E$16),D80,"") -> 
A81: 56.1 | B81: 4.137551957e-08 | C81: =IF(AND($A81>=$B$3-$B$4*C$16,$A81<=$B$3+$B$4*C$16),B81,"") ->  | E81: =IF(AND($A81>=$B$3-$B$4*E$16,$A81<=$B$3+$B$4*E$16),D81,"") -> 
A82: 56.15 | B82: 4.366030738e-08 | C82: =IF(AND($A82>=$B$3-$B$4*C$16,$A82<=$B$3+$B$4*C$16),B82,"") ->  | E82: =IF(AND($A82>=$B$3-$B$4*E$16,$A82<=$B$3+$B$4*E$16),D82,"") -> 
A83: 56.2 | B83: 4.606665601e-08 | C83: =IF(AND($A83>=$B$3-$B$4*C$16,$A83<=$B$3+$B$4*C$16),B83,"") ->  | E83: =IF(AND($A83>=$B$3-$B$4*E$16,$A83<=$B$3+$B$4*E$16),D83,"") -> 
A84: 56.25 | B84: =_xlfn.NORM.DIST(A84,$B$3,$B$4,0) -> 4.860077082e-08 | C84: =IF(AND($A84>=$B$3-$B$4*C$16,$A84<=$B$3+$B$4*C$16),B84,"") ->  | E84: =IF(AND($A84>=$B$3-$B$4*E$16,$A84<=$B$3+$B$4*E$16),D84,"") ->  | F84: =IF(AND(A84>=$B$3-0.15,A84<=$B$3+0.15),B84,"") -> 
A85: 56.3 | B85: 5.126915946e-08 | C85: =IF(AND($A85>=$B$3-$B$4*C$16,$A85<=$B$3+$B$4*C$16),B85,"") ->  | E85: =IF(AND($A85>=$B$3-$B$4*E$16,$A85<=$B$3+$B$4*E$16),D85,"") -> 
A86: 56.35 | B86: 5.407864583e-08 | C86: =IF(AND($A86>=$B$3-$B$4*C$16,$A86<=$B$3+$B$4*C$16),B86,"") ->  | E86: =IF(AND($A86>=$B$3-$B$4*E$16,$A86<=$B$3+$B$4*E$16),D86,"") -> 
A87: 56.4 | B87: 5.703638465e-08 | C87: =IF(AND($A87>=$B$3-$B$4*C$16,$A87<=$B$3+$B$4*C$16),B87,"") ->  | E87: =IF(AND($A87>=$B$3-$B$4*E$16,$A87<=$B$3+$B$4*E$16),D87,"") -> 
A88: 56.45 | B88: 6.014987663e-08 | C88: =IF(AND($A88>=$B$3-$B$4*C$16,$A88<=$B$3+$B$4*C$16),B88,"") ->  | E88: =IF(AND($A88>=$B$3-$B$4*E$16,$A88<=$B$3+$B$4*E$16),D88,"") -> 
A89: 56.5 | B89: 6.342698433e-08 | C89: =IF(AND($A89>=$B$3-$B$4*C$16,$A89<=$B$3+$B$4*C$16),B89,"") ->  | E89: =IF(AND($A89>=$B$3-$B$4*E$16,$A89<=$B$3+$B$4*E$16),D89,"") -> 
A90: 56.55 | B90: 6.68759487e-08 | C90: =IF(AND($A90>=$B$3-$B$4*C$16,$A90<=$B$3+$B$4*C$16),B90,"") ->  | E90: =IF(AND($A90>=$B$3-$B$4*E$16,$A90<=$B$3+$B$4*E$16),D90,"") -> 
A91: 56.6 | B91: 7.050540625e-08 | C91: =IF(AND($A91>=$B$3-$B$4*C$16,$A91<=$B$3+$B$4*C$16),B91,"") ->  | E91: =IF(AND($A91>=$B$3-$B$4*E$16,$A91<=$B$3+$B$4*E$16),D91,"") -> 
A92: 56.65 | B92: 7.432440707e-08 | C92: =IF(AND($A92>=$B$3-$B$4*C$16,$A92<=$B$3+$B$4*C$16),B92,"") ->  | E92: =IF(AND($A92>=$B$3-$B$4*E$16,$A92<=$B$3+$B$4*E$16),D92,"") -> 
A93: 56.7 | B93: 7.834243352e-08 | C93: =IF(AND($A93>=$B$3-$B$4*C$16,$A93<=$B$3+$B$4*C$16),B93,"") ->  | E93: =IF(AND($A93>=$B$3-$B$4*E$16,$A93<=$B$3+$B$4*E$16),D93,"") -> 
A94: 56.75 | B94: 8.256941977e-08 | C94: =IF(AND($A94>=$B$3-$B$4*C$16,$A94<=$B$3+$B$4*C$16),B94,"") ->  | E94: =IF(AND($A94>=$B$3-$B$4*E$16,$A94<=$B$3+$B$4*E$16),D94,"") -> 
A95: 56.8 | B95: 8.701577215e-08 | C95: =IF(AND($A95>=$B$3-$B$4*C$16,$A95<=$B$3+$B$4*C$16),B95,"") ->  | E95: =IF(AND($A95>=$B$3-$B$4*E$16,$A95<=$B$3+$B$4*E$16),D95,"") -> 
A96: 56.85 | B96: 9.169239032e-08 | C96: =IF(AND($A96>=$B$3-$B$4*C$16,$A96<=$B$3+$B$4*C$16),B96,"") ->  | E96: =IF(AND($A96>=$B$3-$B$4*E$16,$A96<=$B$3+$B$4*E$16),D96,"") -> 
A97: 56.9 | B97: 9.661068939e-08 | C97: =IF(AND($A97>=$B$3-$B$4*C$16,$A97<=$B$3+$B$4*C$16),B97,"") ->  | E97: =IF(AND($A97>=$B$3-$B$4*E$16,$A97<=$B$3+$B$4*E$16),D97,"") -> 
A98: 56.95 | B98: 1.017826229e-07 | C98: =IF(AND($A98>=$B$3-$B$4*C$16,$A98<=$B$3+$B$4*C$16),B98,"") ->  | E98: =IF(AND($A98>=$B$3-$B$4*E$16,$A98<=$B$3+$B$4*E$16),D98,"") -> 
A99: 57 | B99: 1.072207069e-07 | C99: =IF(AND($A99>=$B$3-$B$4*C$16,$A99<=$B$3+$B$4*C$16),B99,"") ->  | E99: =IF(AND($A99>=$B$3-$B$4*E$16,$A99<=$B$3+$B$4*E$16),D99,"") -> 
A100: 57.05 | B100: 1.129380447e-07 | C100: =IF(AND($A100>=$B$3-$B$4*C$16,$A100<=$B$3+$B$4*C$16),B100,"") ->  | E100: =IF(AND($A100>=$B$3-$B$4*E$16,$A100<=$B$3+$B$4*E$16),D100,"") -> 
A101: 57.1 | B101: 1.189483531e-07 | C101: =IF(AND($A101>=$B$3-$B$4*C$16,$A101<=$B$3+$B$4*C$16),B101,"") ->  | E101: =IF(AND($A101>=$B$3-$B$4*E$16,$A101<=$B$3+$B$4*E$16),D101,"") -> 
A102: 57.15 | B102: 1.252659894e-07 | C102: =IF(AND($A102>=$B$3-$B$4*C$16,$A102<=$B$3+$B$4*C$16),B102,"") ->  | E102: =IF(AND($A102>=$B$3-$B$4*E$16,$A102<=$B$3+$B$4*E$16),D102,"") -> 
A103: 57.2 | B103: 1.319059794e-07 | C103: =IF(AND($A103>=$B$3-$B$4*C$16,$A103<=$B$3+$B$4*C$16),B103,"") ->  | E103: =IF(AND($A103>=$B$3-$B$4*E$16,$A103<=$B$3+$B$4*E$16),D103,"") -> 
A104: 57.25 | B104: 1.388840471e-07 | C104: =IF(AND($A104>=$B$3-$B$4*C$16,$A104<=$B$3+$B$4*C$16),B104,"") ->  | E104: =IF(AND($A104>=$B$3-$B$4*E$16,$A104<=$B$3+$B$4*E$16),D104,"") -> 
A105: 57.3 | B105: 1.462166449e-07 | C105: =IF(AND($A105>=$B$3-$B$4*C$16,$A105<=$B$3+$B$4*C$16),B105,"") ->  | E105: =IF(AND($A105>=$B$3-$B$4*E$16,$A105<=$B$3+$B$4*E$16),D105,"") -> 
A106: 57.35 | B106: 1.539209858e-07 | C106: =IF(AND($A106>=$B$3-$B$4*C$16,$A106<=$B$3+$B$4*C$16),B106,"") ->  | E106: =IF(AND($A106>=$B$3-$B$4*E$16,$A106<=$B$3+$B$4*E$16),D106,"") -> 
A107: 57.4 | B107: 1.620150758e-07 | C107: =IF(AND($A107>=$B$3-$B$4*C$16,$A107<=$B$3+$B$4*C$16),B107,"") ->  | E107: =IF(AND($A107>=$B$3-$B$4*E$16,$A107<=$B$3+$B$4*E$16),D107,"") -> 
A108: 57.45 | B108: 1.705177491e-07 | C108: =IF(AND($A108>=$B$3-$B$4*C$16,$A108<=$B$3+$B$4*C$16),B108,"") ->  | E108: =IF(AND($A108>=$B$3-$B$4*E$16,$A108<=$B$3+$B$4*E$16),D108,"") -> 
A109: 57.5 | B109: 1.794487032e-07 | C109: =IF(AND($A109>=$B$3-$B$4*C$16,$A109<=$B$3+$B$4*C$16),B109,"") ->  | E109: =IF(AND($A109>=$B$3-$B$4*E$16,$A109<=$B$3+$B$4*E$16),D109,"") -> 
A110: 57.55 | B110: 1.888285369e-07 | C110: =IF(AND($A110>=$B$3-$B$4*C$16,$A110<=$B$3+$B$4*C$16),B110,"") ->  | E110: =IF(AND($A110>=$B$3-$B$4*E$16,$A110<=$B$3+$B$4*E$16),D110,"") -> 
A111: 57.6 | B111: 1.986787883e-07 | C111: =IF(AND($A111>=$B$3-$B$4*C$16,$A111<=$B$3+$B$4*C$16),B111,"") ->  | E111: =IF(AND($A111>=$B$3-$B$4*E$16,$A111<=$B$3+$B$4*E$16),D111,"") -> 
A112: 57.65 | B112: 2.090219753e-07 | C112: =IF(AND($A112>=$B$3-$B$4*C$16,$A112<=$B$3+$B$4*C$16),B112,"") ->  | E112: =IF(AND($A112>=$B$3-$B$4*E$16,$A112<=$B$3+$B$4*E$16),D112,"") -> 
A113: 57.7 | B113: 2.198816377e-07 | C113: =IF(AND($A113>=$B$3-$B$4*C$16,$A113<=$B$3+$B$4*C$16),B113,"") ->  | E113: =IF(AND($A113>=$B$3-$B$4*E$16,$A113<=$B$3+$B$4*E$16),D113,"") -> 
A114: 57.75 | B114: 2.312823807e-07 | C114: =IF(AND($A114>=$B$3-$B$4*C$16,$A114<=$B$3+$B$4*C$16),B114,"") ->  | E114: =IF(AND($A114>=$B$3-$B$4*E$16,$A114<=$B$3+$B$4*E$16),D114,"") -> 
A115: 57.8 | B115: 2.432499198e-07 | C115: =IF(AND($A115>=$B$3-$B$4*C$16,$A115<=$B$3+$B$4*C$16),B115,"") ->  | E115: =IF(AND($A115>=$B$3-$B$4*E$16,$A115<=$B$3+$B$4*E$16),D115,"") -> 
A116: 57.85 | B116: 2.558111281e-07 | C116: =IF(AND($A116>=$B$3-$B$4*C$16,$A116<=$B$3+$B$4*C$16),B116,"") ->  | E116: =IF(AND($A116>=$B$3-$B$4*E$16,$A116<=$B$3+$B$4*E$16),D116,"") -> 
A117: 57.9 | B117: 2.689940852e-07 | C117: =IF(AND($A117>=$B$3-$B$4*C$16,$A117<=$B$3+$B$4*C$16),B117,"") ->  | E117: =IF(AND($A117>=$B$3-$B$4*E$16,$A117<=$B$3+$B$4*E$16),D117,"") -> 
A118: 57.95 | B118: 2.828281279e-07 | C118: =IF(AND($A118>=$B$3-$B$4*C$16,$A118<=$B$3+$B$4*C$16),B118,"") ->  | E118: =IF(AND($A118>=$B$3-$B$4*E$16,$A118<=$B$3+$B$4*E$16),D118,"") -> 
A119: 58 | B119: 2.973439029e-07 | C119: =IF(AND($A119>=$B$3-$B$4*C$16,$A119<=$B$3+$B$4*C$16),B119,"") ->  | E119: =IF(AND($A119>=$B$3-$B$4*E$16,$A119<=$B$3+$B$4*E$16),D119,"") -> 
A120: 58.05 | B120: 3.125734218e-07 | C120: =IF(AND($A120>=$B$3-$B$4*C$16,$A120<=$B$3+$B$4*C$16),B120,"") ->  | E120: =IF(AND($A120>=$B$3-$B$4*E$16,$A120<=$B$3+$B$4*E$16),D120,"") -> 
A121: 58.1 | B121: 3.285501176e-07 | C121: =IF(AND($A121>=$B$3-$B$4*C$16,$A121<=$B$3+$B$4*C$16),B121,"") ->  | E121: =IF(AND($A121>=$B$3-$B$4*E$16,$A121<=$B$3+$B$4*E$16),D121,"") -> 
A122: 58.15 | B122: 3.453089043e-07 | C122: =IF(AND($A122>=$B$3-$B$4*C$16,$A122<=$B$3+$B$4*C$16),B122,"") ->  | E122: =IF(AND($A122>=$B$3-$B$4*E$16,$A122<=$B$3+$B$4*E$16),D122,"") -> 
A123: 58.2 | B123: 3.62886238e-07 | C123: =IF(AND($A123>=$B$3-$B$4*C$16,$A123<=$B$3+$B$4*C$16),B123,"") ->  | E123: =IF(AND($A123>=$B$3-$B$4*E$16,$A123<=$B$3+$B$4*E$16),D123,"") -> 
A124: 58.25 | B124: 3.813201806e-07 | C124: =IF(AND($A124>=$B$3-$B$4*C$16,$A124<=$B$3+$B$4*C$16),B124,"") ->  | E124: =IF(AND($A124>=$B$3-$B$4*E$16,$A124<=$B$3+$B$4*E$16),D124,"") -> 
A125: 58.3 | B125: 4.00650466e-07 | C125: =IF(AND($A125>=$B$3-$B$4*C$16,$A125<=$B$3+$B$4*C$16),B125,"") ->  | E125: =IF(AND($A125>=$B$3-$B$4*E$16,$A125<=$B$3+$B$4*E$16),D125,"") -> 
A126: 58.35 | B126: 4.209185686e-07 | C126: =IF(AND($A126>=$B$3-$B$4*C$16,$A126<=$B$3+$B$4*C$16),B126,"") ->  | E126: =IF(AND($A126>=$B$3-$B$4*E$16,$A126<=$B$3+$B$4*E$16),D126,"") -> 
A127: 58.4 | B127: 4.421677749e-07 | C127: =IF(AND($A127>=$B$3-$B$4*C$16,$A127<=$B$3+$B$4*C$16),B127,"") ->  | E127: =IF(AND($A127>=$B$3-$B$4*E$16,$A127<=$B$3+$B$4*E$16),D127,"") -> 
A128: 58.45 | B128: 4.644432569e-07 | C128: =IF(AND($A128>=$B$3-$B$4*C$16,$A128<=$B$3+$B$4*C$16),B128,"") ->  | E128: =IF(AND($A128>=$B$3-$B$4*E$16,$A128<=$B$3+$B$4*E$16),D128,"") -> 
A129: 58.5 | B129: 4.877921492e-07 | C129: =IF(AND($A129>=$B$3-$B$4*C$16,$A129<=$B$3+$B$4*C$16),B129,"") ->  | E129: =IF(AND($A129>=$B$3-$B$4*E$16,$A129<=$B$3+$B$4*E$16),D129,"") -> 
A130: 58.55 | B130: 5.122636282e-07 | C130: =IF(AND($A130>=$B$3-$B$4*C$16,$A130<=$B$3+$B$4*C$16),B130,"") ->  | E130: =IF(AND($A130>=$B$3-$B$4*E$16,$A130<=$B$3+$B$4*E$16),D130,"") -> 
A131: 58.6 | B131: 5.379089949e-07 | C131: =IF(AND($A131>=$B$3-$B$4*C$16,$A131<=$B$3+$B$4*C$16),B131,"") ->  | E131: =IF(AND($A131>=$B$3-$B$4*E$16,$A131<=$B$3+$B$4*E$16),D131,"") -> 
A132: 58.65 | B132: 5.647817602e-07 | C132: =IF(AND($A132>=$B$3-$B$4*C$16,$A132<=$B$3+$B$4*C$16),B132,"") ->  | E132: =IF(AND($A132>=$B$3-$B$4*E$16,$A132<=$B$3+$B$4*E$16),D132,"") -> 
A133: 58.7 | B133: 5.929377337e-07 | C133: =IF(AND($A133>=$B$3-$B$4*C$16,$A133<=$B$3+$B$4*C$16),B133,"") ->  | E133: =IF(AND($A133>=$B$3-$B$4*E$16,$A133<=$B$3+$B$4*E$16),D133,"") -> 
A134: 58.75 | B134: 6.224351158e-07 | C134: =IF(AND($A134>=$B$3-$B$4*C$16,$A134<=$B$3+$B$4*C$16),B134,"") ->  | E134: =IF(AND($A134>=$B$3-$B$4*E$16,$A134<=$B$3+$B$4*E$16),D134,"") -> 
A135: 58.8 | B135: 6.533345928e-07 | C135: =IF(AND($A135>=$B$3-$B$4*C$16,$A135<=$B$3+$B$4*C$16),B135,"") ->  | E135: =IF(AND($A135>=$B$3-$B$4*E$16,$A135<=$B$3+$B$4*E$16),D135,"") -> 
A136: 58.85 | B136: 6.856994357e-07 | C136: =IF(AND($A136>=$B$3-$B$4*C$16,$A136<=$B$3+$B$4*C$16),B136,"") ->  | E136: =IF(AND($A136>=$B$3-$B$4*E$16,$A136<=$B$3+$B$4*E$16),D136,"") -> 
A137: 58.9 | B137: 7.195956027e-07 | C137: =IF(AND($A137>=$B$3-$B$4*C$16,$A137<=$B$3+$B$4*C$16),B137,"") ->  | E137: =IF(AND($A137>=$B$3-$B$4*E$16,$A137<=$B$3+$B$4*E$16),D137,"") -> 
A138: 58.95 | B138: 7.550918453e-07 | C138: =IF(AND($A138>=$B$3-$B$4*C$16,$A138<=$B$3+$B$4*C$16),B138,"") ->  | E138: =IF(AND($A138>=$B$3-$B$4*E$16,$A138<=$B$3+$B$4*E$16),D138,"") -> 
A139: 59 | B139: 7.922598182e-07 | C139: =IF(AND($A139>=$B$3-$B$4*C$16,$A139<=$B$3+$B$4*C$16),B139,"") ->  | E139: =IF(AND($A139>=$B$3-$B$4*E$16,$A139<=$B$3+$B$4*E$16),D139,"") -> 
A140: 59.05 | B140: 8.311741929e-07 | C140: =IF(AND($A140>=$B$3-$B$4*C$16,$A140<=$B$3+$B$4*C$16),B140,"") ->  | E140: =IF(AND($A140>=$B$3-$B$4*E$16,$A140<=$B$3+$B$4*E$16),D140,"") -> 
A141: 59.1 | B141: 8.719127759e-07 | C141: =IF(AND($A141>=$B$3-$B$4*C$16,$A141<=$B$3+$B$4*C$16),B141,"") ->  | E141: =IF(AND($A141>=$B$3-$B$4*E$16,$A141<=$B$3+$B$4*E$16),D141,"") -> 
A142: 59.15 | B142: 9.145566308e-07 | C142: =IF(AND($A142>=$B$3-$B$4*C$16,$A142<=$B$3+$B$4*C$16),B142,"") ->  | E142: =IF(AND($A142>=$B$3-$B$4*E$16,$A142<=$B$3+$B$4*E$16),D142,"") -> 
A143: 59.2 | B143: 9.591902043e-07 | C143: =IF(AND($A143>=$B$3-$B$4*C$16,$A143<=$B$3+$B$4*C$16),B143,"") ->  | E143: =IF(AND($A143>=$B$3-$B$4*E$16,$A143<=$B$3+$B$4*E$16),D143,"") -> 
A144: 59.25 | B144: 1.005901458e-06 | C144: =IF(AND($A144>=$B$3-$B$4*C$16,$A144<=$B$3+$B$4*C$16),B144,"") ->  | E144: =IF(AND($A144>=$B$3-$B$4*E$16,$A144<=$B$3+$B$4*E$16),D144,"") -> 
A145: 59.3 | B145: 1.054782002e-06 | C145: =IF(AND($A145>=$B$3-$B$4*C$16,$A145<=$B$3+$B$4*C$16),B145,"") ->  | E145: =IF(AND($A145>=$B$3-$B$4*E$16,$A145<=$B$3+$B$4*E$16),D145,"") -> 
A146: 59.35 | B146: 1.105927238e-06 | C146: =IF(AND($A146>=$B$3-$B$4*C$16,$A146<=$B$3+$B$4*C$16),B146,"") ->  | E146: =IF(AND($A146>=$B$3-$B$4*E$16,$A146<=$B$3+$B$4*E$16),D146,"") -> 
A147: 59.4 | B147: 1.159436501e-06 | C147: =IF(AND($A147>=$B$3-$B$4*C$16,$A147<=$B$3+$B$4*C$16),B147,"") ->  | E147: =IF(AND($A147>=$B$3-$B$4*E$16,$A147<=$B$3+$B$4*E$16),D147,"") -> 
A148: 59.45 | B148: =_xlfn.NORM.DIST(A148,$B$3,$B$4,0) -> 1.215413213e-06 | C148: =IF(AND($A148>=$B$3-$B$4*C$16,$A148<=$B$3+$B$4*C$16),B148,"") ->  | E148: =IF(AND($A148>=$B$3-$B$4*E$16,$A148<=$B$3+$B$4*E$16),D148,"") ->  | F148: =IF(AND(A148>=$B$3-0.15,A148<=$B$3+0.15),B148,"") -> 
A149: 59.5 | B149: 1.273965036e-06 | C149: =IF(AND($A149>=$B$3-$B$4*C$16,$A149<=$B$3+$B$4*C$16),B149,"") ->  | E149: =IF(AND($A149>=$B$3-$B$4*E$16,$A149<=$B$3+$B$4*E$16),D149,"") -> 
A150: 59.55 | B150: 1.335204031e-06 | C150: =IF(AND($A150>=$B$3-$B$4*C$16,$A150<=$B$3+$B$4*C$16),B150,"") ->  | E150: =IF(AND($A150>=$B$3-$B$4*E$16,$A150<=$B$3+$B$4*E$16),D150,"") -> 
A151: 59.6 | B151: 1.399246829e-06 | C151: =IF(AND($A151>=$B$3-$B$4*C$16,$A151<=$B$3+$B$4*C$16),B151,"") ->  | E151: =IF(AND($A151>=$B$3-$B$4*E$16,$A151<=$B$3+$B$4*E$16),D151,"") -> 
A152: 59.65 | B152: 1.466214798e-06 | C152: =IF(AND($A152>=$B$3-$B$4*C$16,$A152<=$B$3+$B$4*C$16),B152,"") ->  | E152: =IF(AND($A152>=$B$3-$B$4*E$16,$A152<=$B$3+$B$4*E$16),D152,"") -> 
A153: 59.7 | B153: 1.536234223e-06 | C153: =IF(AND($A153>=$B$3-$B$4*C$16,$A153<=$B$3+$B$4*C$16),B153,"") ->  | E153: =IF(AND($A153>=$B$3-$B$4*E$16,$A153<=$B$3+$B$4*E$16),D153,"") -> 
A154: 59.75 | B154: 1.609436491e-06 | C154: =IF(AND($A154>=$B$3-$B$4*C$16,$A154<=$B$3+$B$4*C$16),B154,"") ->  | E154: =IF(AND($A154>=$B$3-$B$4*E$16,$A154<=$B$3+$B$4*E$16),D154,"") -> 
A155: 59.8 | B155: 1.685958277e-06 | C155: =IF(AND($A155>=$B$3-$B$4*C$16,$A155<=$B$3+$B$4*C$16),B155,"") ->  | E155: =IF(AND($A155>=$B$3-$B$4*E$16,$A155<=$B$3+$B$4*E$16),D155,"") -> 
A156: 59.85 | B156: 1.765941741e-06 | C156: =IF(AND($A156>=$B$3-$B$4*C$16,$A156<=$B$3+$B$4*C$16),B156,"") ->  | E156: =IF(AND($A156>=$B$3-$B$4*E$16,$A156<=$B$3+$B$4*E$16),D156,"") -> 
A157: 59.9 | B157: 1.849534734e-06 | C157: =IF(AND($A157>=$B$3-$B$4*C$16,$A157<=$B$3+$B$4*C$16),B157,"") ->  | E157: =IF(AND($A157>=$B$3-$B$4*E$16,$A157<=$B$3+$B$4*E$16),D157,"") -> 
A158: 59.95 | B158: 1.936891004e-06 | C158: =IF(AND($A158>=$B$3-$B$4*C$16,$A158<=$B$3+$B$4*C$16),B158,"") ->  | E158: =IF(AND($A158>=$B$3-$B$4*E$16,$A158<=$B$3+$B$4*E$16),D158,"") -> 
A159: 60 | B159: 2.028170413e-06 | C159: =IF(AND($A159>=$B$3-$B$4*C$16,$A159<=$B$3+$B$4*C$16),B159,"") ->  | E159: =IF(AND($A159>=$B$3-$B$4*E$16,$A159<=$B$3+$B$4*E$16),D159,"") -> 
A160: 60.05 | B160: 2.123539161e-06 | C160: =IF(AND($A160>=$B$3-$B$4*C$16,$A160<=$B$3+$B$4*C$16),B160,"") ->  | E160: =IF(AND($A160>=$B$3-$B$4*E$16,$A160<=$B$3+$B$4*E$16),D160,"") -> 
A161: 60.1 | B161: 2.223170016e-06 | C161: =IF(AND($A161>=$B$3-$B$4*C$16,$A161<=$B$3+$B$4*C$16),B161,"") ->  | E161: =IF(AND($A161>=$B$3-$B$4*E$16,$A161<=$B$3+$B$4*E$16),D161,"") -> 
A162: 60.15 | B162: 2.327242551e-06 | C162: =IF(AND($A162>=$B$3-$B$4*C$16,$A162<=$B$3+$B$4*C$16),B162,"") ->  | E162: =IF(AND($A162>=$B$3-$B$4*E$16,$A162<=$B$3+$B$4*E$16),D162,"") -> 
A163: 60.2 | B163: 2.435943394e-06 | C163: =IF(AND($A163>=$B$3-$B$4*C$16,$A163<=$B$3+$B$4*C$16),B163,"") ->  | E163: =IF(AND($A163>=$B$3-$B$4*E$16,$A163<=$B$3+$B$4*E$16),D163,"") -> 
A164: 60.25 | B164: 2.549466476e-06 | C164: =IF(AND($A164>=$B$3-$B$4*C$16,$A164<=$B$3+$B$4*C$16),B164,"") ->  | E164: =IF(AND($A164>=$B$3-$B$4*E$16,$A164<=$B$3+$B$4*E$16),D164,"") -> 
A165: 60.3 | B165: 2.668013298e-06 | C165: =IF(AND($A165>=$B$3-$B$4*C$16,$A165<=$B$3+$B$4*C$16),B165,"") ->  | E165: =IF(AND($A165>=$B$3-$B$4*E$16,$A165<=$B$3+$B$4*E$16),D165,"") -> 
A166: 60.35 | B166: 2.791793197e-06 | C166: =IF(AND($A166>=$B$3-$B$4*C$16,$A166<=$B$3+$B$4*C$16),B166,"") ->  | E166: =IF(AND($A166>=$B$3-$B$4*E$16,$A166<=$B$3+$B$4*E$16),D166,"") -> 
A167: 60.4 | B167: 2.921023628e-06 | C167: =IF(AND($A167>=$B$3-$B$4*C$16,$A167<=$B$3+$B$4*C$16),B167,"") ->  | E167: =IF(AND($A167>=$B$3-$B$4*E$16,$A167<=$B$3+$B$4*E$16),D167,"") -> 
A168: 60.45 | B168: 3.055930449e-06 | C168: =IF(AND($A168>=$B$3-$B$4*C$16,$A168<=$B$3+$B$4*C$16),B168,"") ->  | E168: =IF(AND($A168>=$B$3-$B$4*E$16,$A168<=$B$3+$B$4*E$16),D168,"") -> 
A169: 60.5 | B169: 3.196748221e-06 | C169: =IF(AND($A169>=$B$3-$B$4*C$16,$A169<=$B$3+$B$4*C$16),B169,"") ->  | E169: =IF(AND($A169>=$B$3-$B$4*E$16,$A169<=$B$3+$B$4*E$16),D169,"") -> 
A170: 60.55 | B170: 3.34372051e-06 | C170: =IF(AND($A170>=$B$3-$B$4*C$16,$A170<=$B$3+$B$4*C$16),B170,"") ->  | E170: =IF(AND($A170>=$B$3-$B$4*E$16,$A170<=$B$3+$B$4*E$16),D170,"") -> 
A171: 60.6 | B171: 3.497100205e-06 | C171: =IF(AND($A171>=$B$3-$B$4*C$16,$A171<=$B$3+$B$4*C$16),B171,"") ->  | E171: =IF(AND($A171>=$B$3-$B$4*E$16,$A171<=$B$3+$B$4*E$16),D171,"") -> 
A172: 60.65 | B172: 3.657149842e-06 | C172: =IF(AND($A172>=$B$3-$B$4*C$16,$A172<=$B$3+$B$4*C$16),B172,"") ->  | E172: =IF(AND($A172>=$B$3-$B$4*E$16,$A172<=$B$3+$B$4*E$16),D172,"") -> 
A173: 60.7 | B173: 3.824141939e-06 | C173: =IF(AND($A173>=$B$3-$B$4*C$16,$A173<=$B$3+$B$4*C$16),B173,"") ->  | E173: =IF(AND($A173>=$B$3-$B$4*E$16,$A173<=$B$3+$B$4*E$16),D173,"") -> 
A174: 60.75 | B174: 3.998359341e-06 | C174: =IF(AND($A174>=$B$3-$B$4*C$16,$A174<=$B$3+$B$4*C$16),B174,"") ->  | E174: =IF(AND($A174>=$B$3-$B$4*E$16,$A174<=$B$3+$B$4*E$16),D174,"") -> 
A175: 60.8 | B175: 4.18009558e-06 | C175: =IF(AND($A175>=$B$3-$B$4*C$16,$A175<=$B$3+$B$4*C$16),B175,"") ->  | E175: =IF(AND($A175>=$B$3-$B$4*E$16,$A175<=$B$3+$B$4*E$16),D175,"") -> 
A176: 60.85 | B176: 4.369655235e-06 | C176: =IF(AND($A176>=$B$3-$B$4*C$16,$A176<=$B$3+$B$4*C$16),B176,"") ->  | E176: =IF(AND($A176>=$B$3-$B$4*E$16,$A176<=$B$3+$B$4*E$16),D176,"") -> 
A177: 60.9 | B177: 4.567354313e-06 | C177: =IF(AND($A177>=$B$3-$B$4*C$16,$A177<=$B$3+$B$4*C$16),B177,"") ->  | E177: =IF(AND($A177>=$B$3-$B$4*E$16,$A177<=$B$3+$B$4*E$16),D177,"") -> 
A178: 60.95 | B178: 4.77352064e-06 | C178: =IF(AND($A178>=$B$3-$B$4*C$16,$A178<=$B$3+$B$4*C$16),B178,"") ->  | E178: =IF(AND($A178>=$B$3-$B$4*E$16,$A178<=$B$3+$B$4*E$16),D178,"") -> 
A179: 61 | B179: 4.988494258e-06 | C179: =IF(AND($A179>=$B$3-$B$4*C$16,$A179<=$B$3+$B$4*C$16),B179,"") ->  | E179: =IF(AND($A179>=$B$3-$B$4*E$16,$A179<=$B$3+$B$4*E$16),D179,"") -> 
A180: 61.05 | B180: 5.212627839e-06 | C180: =IF(AND($A180>=$B$3-$B$4*C$16,$A180<=$B$3+$B$4*C$16),B180,"") ->  | E180: =IF(AND($A180>=$B$3-$B$4*E$16,$A180<=$B$3+$B$4*E$16),D180,"") -> 
A181: 61.1 | B181: 5.44628711e-06 | C181: =IF(AND($A181>=$B$3-$B$4*C$16,$A181<=$B$3+$B$4*C$16),B181,"") ->  | E181: =IF(AND($A181>=$B$3-$B$4*E$16,$A181<=$B$3+$B$4*E$16),D181,"") -> 
A182: 61.15 | B182: 5.689851289e-06 | C182: =IF(AND($A182>=$B$3-$B$4*C$16,$A182<=$B$3+$B$4*C$16),B182,"") ->  | E182: =IF(AND($A182>=$B$3-$B$4*E$16,$A182<=$B$3+$B$4*E$16),D182,"") -> 
A183: 61.2 | B183: 5.943713535e-06 | C183: =IF(AND($A183>=$B$3-$B$4*C$16,$A183<=$B$3+$B$4*C$16),B183,"") ->  | E183: =IF(AND($A183>=$B$3-$B$4*E$16,$A183<=$B$3+$B$4*E$16),D183,"") -> 
A184: 61.25 | B184: 6.208281412e-06 | C184: =IF(AND($A184>=$B$3-$B$4*C$16,$A184<=$B$3+$B$4*C$16),B184,"") ->  | E184: =IF(AND($A184>=$B$3-$B$4*E$16,$A184<=$B$3+$B$4*E$16),D184,"") -> 
A185: 61.3 | B185: 6.483977361e-06 | C185: =IF(AND($A185>=$B$3-$B$4*C$16,$A185<=$B$3+$B$4*C$16),B185,"") ->  | E185: =IF(AND($A185>=$B$3-$B$4*E$16,$A185<=$B$3+$B$4*E$16),D185,"") -> 
A186: 61.35 | B186: 6.771239195e-06 | C186: =IF(AND($A186>=$B$3-$B$4*C$16,$A186<=$B$3+$B$4*C$16),B186,"") ->  | E186: =IF(AND($A186>=$B$3-$B$4*E$16,$A186<=$B$3+$B$4*E$16),D186,"") -> 
A187: 61.4 | B187: 7.0705206e-06 | C187: =IF(AND($A187>=$B$3-$B$4*C$16,$A187<=$B$3+$B$4*C$16),B187,"") ->  | E187: =IF(AND($A187>=$B$3-$B$4*E$16,$A187<=$B$3+$B$4*E$16),D187,"") -> 
A188: 61.45 | B188: 7.382291652e-06 | C188: =IF(AND($A188>=$B$3-$B$4*C$16,$A188<=$B$3+$B$4*C$16),B188,"") ->  | E188: =IF(AND($A188>=$B$3-$B$4*E$16,$A188<=$B$3+$B$4*E$16),D188,"") -> 
A189: 61.5 | B189: 7.707039348e-06 | C189: =IF(AND($A189>=$B$3-$B$4*C$16,$A189<=$B$3+$B$4*C$16),B189,"") ->  | E189: =IF(AND($A189>=$B$3-$B$4*E$16,$A189<=$B$3+$B$4*E$16),D189,"") -> 
A190: 61.55 | B190: 8.045268159e-06 | C190: =IF(AND($A190>=$B$3-$B$4*C$16,$A190<=$B$3+$B$4*C$16),B190,"") ->  | E190: =IF(AND($A190>=$B$3-$B$4*E$16,$A190<=$B$3+$B$4*E$16),D190,"") -> 
A191: 61.6 | B191: 8.397500586e-06 | C191: =IF(AND($A191>=$B$3-$B$4*C$16,$A191<=$B$3+$B$4*C$16),B191,"") ->  | E191: =IF(AND($A191>=$B$3-$B$4*E$16,$A191<=$B$3+$B$4*E$16),D191,"") -> 
A192: 61.65 | B192: 8.764277741e-06 | C192: =IF(AND($A192>=$B$3-$B$4*C$16,$A192<=$B$3+$B$4*C$16),B192,"") ->  | E192: =IF(AND($A192>=$B$3-$B$4*E$16,$A192<=$B$3+$B$4*E$16),D192,"") -> 
A193: 61.7 | B193: 9.146159938e-06 | C193: =IF(AND($A193>=$B$3-$B$4*C$16,$A193<=$B$3+$B$4*C$16),B193,"") ->  | E193: =IF(AND($A193>=$B$3-$B$4*E$16,$A193<=$B$3+$B$4*E$16),D193,"") -> 
A194: 61.75 | B194: 9.543727308e-06 | C194: =IF(AND($A194>=$B$3-$B$4*C$16,$A194<=$B$3+$B$4*C$16),B194,"") ->  | E194: =IF(AND($A194>=$B$3-$B$4*E$16,$A194<=$B$3+$B$4*E$16),D194,"") -> 
A195: 61.8 | B195: 9.95758042e-06 | C195: =IF(AND($A195>=$B$3-$B$4*C$16,$A195<=$B$3+$B$4*C$16),B195,"") ->  | E195: =IF(AND($A195>=$B$3-$B$4*E$16,$A195<=$B$3+$B$4*E$16),D195,"") -> 
A196: 61.85 | B196: 1.038834092e-05 | C196: =IF(AND($A196>=$B$3-$B$4*C$16,$A196<=$B$3+$B$4*C$16),B196,"") ->  | E196: =IF(AND($A196>=$B$3-$B$4*E$16,$A196<=$B$3+$B$4*E$16),D196,"") -> 
A197: 61.9 | B197: 1.083665222e-05 | C197: =IF(AND($A197>=$B$3-$B$4*C$16,$A197<=$B$3+$B$4*C$16),B197,"") ->  | E197: =IF(AND($A197>=$B$3-$B$4*E$16,$A197<=$B$3+$B$4*E$16),D197,"") -> 
A198: 61.95 | B198: 1.130318012e-05 | C198: =IF(AND($A198>=$B$3-$B$4*C$16,$A198<=$B$3+$B$4*C$16),B198,"") ->  | E198: =IF(AND($A198>=$B$3-$B$4*E$16,$A198<=$B$3+$B$4*E$16),D198,"") -> 
A199: 62 | B199: 1.178861355e-05 | C199: =IF(AND($A199>=$B$3-$B$4*C$16,$A199<=$B$3+$B$4*C$16),B199,"") ->  | E199: =IF(AND($A199>=$B$3-$B$4*E$16,$A199<=$B$3+$B$4*E$16),D199,"") -> 
A200: 62.05 | B200: 1.229366529e-05 | C200: =IF(AND($A200>=$B$3-$B$4*C$16,$A200<=$B$3+$B$4*C$16),B200,"") ->  | E200: =IF(AND($A200>=$B$3-$B$4*E$16,$A200<=$B$3+$B$4*E$16),D200,"") -> 
A201: 62.1 | B201: 1.281907265e-05 | C201: =IF(AND($A201>=$B$3-$B$4*C$16,$A201<=$B$3+$B$4*C$16),B201,"") ->  | E201: =IF(AND($A201>=$B$3-$B$4*E$16,$A201<=$B$3+$B$4*E$16),D201,"") -> 
A202: 62.15 | B202: 1.336559827e-05 | C202: =IF(AND($A202>=$B$3-$B$4*C$16,$A202<=$B$3+$B$4*C$16),B202,"") ->  | E202: =IF(AND($A202>=$B$3-$B$4*E$16,$A202<=$B$3+$B$4*E$16),D202,"") -> 
A203: 62.2 | B203: 1.393403087e-05 | C203: =IF(AND($A203>=$B$3-$B$4*C$16,$A203<=$B$3+$B$4*C$16),B203,"") ->  | E203: =IF(AND($A203>=$B$3-$B$4*E$16,$A203<=$B$3+$B$4*E$16),D203,"") -> 
A204: 62.25 | B204: 1.452518606e-05 | C204: =IF(AND($A204>=$B$3-$B$4*C$16,$A204<=$B$3+$B$4*C$16),B204,"") ->  | E204: =IF(AND($A204>=$B$3-$B$4*E$16,$A204<=$B$3+$B$4*E$16),D204,"") -> 
A205: 62.3 | B205: 1.513990711e-05 | C205: =IF(AND($A205>=$B$3-$B$4*C$16,$A205<=$B$3+$B$4*C$16),B205,"") ->  | E205: =IF(AND($A205>=$B$3-$B$4*E$16,$A205<=$B$3+$B$4*E$16),D205,"") -> 
A206: 62.35 | B206: 1.57790658e-05 | C206: =IF(AND($A206>=$B$3-$B$4*C$16,$A206<=$B$3+$B$4*C$16),B206,"") ->  | E206: =IF(AND($A206>=$B$3-$B$4*E$16,$A206<=$B$3+$B$4*E$16),D206,"") -> 
A207: 62.4 | B207: 1.644356331e-05 | C207: =IF(AND($A207>=$B$3-$B$4*C$16,$A207<=$B$3+$B$4*C$16),B207,"") ->  | E207: =IF(AND($A207>=$B$3-$B$4*E$16,$A207<=$B$3+$B$4*E$16),D207,"") -> 
A208: 62.45 | B208: 1.713433101e-05 | C208: =IF(AND($A208>=$B$3-$B$4*C$16,$A208<=$B$3+$B$4*C$16),B208,"") ->  | E208: =IF(AND($A208>=$B$3-$B$4*E$16,$A208<=$B$3+$B$4*E$16),D208,"") -> 
A209: 62.5 | B209: 1.785233144e-05 | C209: =IF(AND($A209>=$B$3-$B$4*C$16,$A209<=$B$3+$B$4*C$16),B209,"") ->  | E209: =IF(AND($A209>=$B$3-$B$4*E$16,$A209<=$B$3+$B$4*E$16),D209,"") -> 
... 1010 more rows

Sheet Sheet2

Sheet Sheet3
